[Event "Catalan Youth Championship 2024"]
[Site "Cambrils"]
[Date "2024.03.24"]
[Round "3.18"]
[White "Montero Olmos, Javier"]
[Black "Funes Ostos, Aitor"]
[Result "0-1"]
[ECO "B13"]
[WhiteElo "2001"]
[BlackElo "2125"]
[Annotator "RC"]
[PlyCount "52"]
[EventDate "2024.03.13"]
[EventType "swiss"]
[EventCountry "ESP"]
[SourceTitle "playchess.com"]
[Source "ChessBase"]
[SourceQuality "1"]
[TimeControl "5400+30"]

1. e4 {[%emt 1:31:00]} c6 {[%emt 1:31:00]} 2. d4 {[%emt 0:00:30]} d5 {[%emt 0:00:30]} 3. exd5 {[%emt 0:00:30]} cxd5 {[%emt 0:00:30]} 4. Bd3 {[%emt 0:00:30]} Nf6 {[%emt 0:00:30]} 5. c3 {[%emt 0:00:30]} Bg4 {[%emt 0:00:30]} 6. Qb3 {[%emt 0:00:30]} Qc7 {[%emt 0:00:30]} 7. h3 {[%emt 0:00:30]} Bd7 {[%emt 0:00:30]} 8. Nf3 {[%emt 0:00:30]} e6 {[%emt 0:00:30]} 9. O-O {[%emt 0:00:30]} Bd6 {[%emt 0:00:30]} 10. Re1 {[%emt 0:00:30]} Nc6 {[%emt 0:00:30]} 11. Qd1 {[%emt 0:00:30]} h6 {[%emt 0:00:30]} 12. Qe2 {[%emt 0:00:30]} O-O {[%emt 0:00:30]} 13. Ne5 {[%emt 0:00:30]} Nh7 {[%emt 0:00:30]} 14. Nd2 {[%emt 0:00:30]} Nxe5 {[%emt 0:00:30]} 15. dxe5 {[%emt 0:00:30]} Be7 {[%emt 0:00:30]} 16. Nf3 {[%emt 0:00:30]} Qd8 {[%emt 0:00:30]} 17. Nd4 {[%emt 0:00:30]} f5 {[%emt 0:00:30]} 18. exf6 {[%emt 0:00:30]} Rxf6 {[%emt 0:00:30]} 19. Nf5 {[%emt 0:00:30]} Bc5 {[%emt 0:00:30]} 20. Be3 {[%emt 0:00:30]} Bf8 {[%emt 0:00:30]} 21. Ng3 {[%emt 0:00:30]} e5 {[%emt 0:00:30]} 22. Nh5 {[%emt 0:00:30]} Rc6 {[%emt 0:00:30]} 23. Bxh7+ {[%emt 0:00:30]} Kxh7 {[%emt 0:00:30]} 24. Qd3+ {[%emt 0:00:30]} Rg6 {[%emt 0:00:30]} 25. f4 {[%emt 0:00:30]} Bxh3 {[%emt 0:00:30]} 26. g3 {[%emt 0:00:30]} e4 {[%emt 0:00:30]} 0-1

[Event "Catalan Youth Championship 2024"]
[Site "Cambrils"]
[Date "2024.03.24"]
[Round "3.19"]
[White "Chiva Perez, Ferran"]
[Black "Creixans Comerma, Pol"]
[Result "0-1"]
[ECO "E11"]
[WhiteElo "2025"]
[BlackElo "1981"]
[Annotator "RC"]
[PlyCount "60"]
[EventDate "2024.03.13"]
[EventType "swiss"]
[EventCountry "ESP"]
[SourceTitle "playchess.com"]
[Source "ChessBase"]
[SourceQuality "1"]
[TimeControl "5400+30"]

1. d4 {[%emt 0:00:02]} Nf6 {[%emt 1:31:00]} 2. c4 {[%emt 0:00:11]} e6 {[%emt 0:00:00]} 3. g3 {[%emt 0:00:06]} Bb4+ {[%emt 0:00:00]} 4. Nd2 {[%emt 0:00:33]} Nc6 {[%emt 0:01:30]} 5. Ngf3 {[%emt 0:05:45]} O-O {[%emt 0:00:00]} 6. Bg2 {[%emt 0:00:56]} d6 {[%emt 0:00:00]} 7. O-O {[%emt 0:01:14]} Bxd2 {[%emt 0:01:30]} 8. Qxd2 {[%emt 1:25:43]} Qe7 {[%emt 0:00:30]} 9. b3 {[%emt 0:00:30]} e5 {[%emt 0:00:00]} 10. d5 {[%emt 0:00:00]} Nb8 {[%emt 0:00:00]} 11. Bb2 {[%emt 0:01:00]} a5 {[%emt 0:01:30]} 12. c5 {[%emt 0:00:30]} Ne4 {[%emt 0:00:00]} 13. cxd6 {[%emt 0:00:00]} cxd6 {[%emt 0:01:00]} 14. Qc2 {[%emt 0:01:00]} Nc5 {[%emt 0:00:30]} 15. Ne1 {[%emt 0:00:30]} Nba6 {[%emt 0:00:30]} 16. Nd3 {[%emt 0:00:30]} Bf5 {[%emt 0:00:30]} 17. Qd1 {[%emt 0:00:00]} Rac8 {[%emt 0:00:00]} 18. Re1 {[%emt 0:01:00]} Nxd3 {[%emt 0:00:00]} 19. exd3 {[%emt 0:00:30]} Nb4 {[%emt 0:00:00]} 20. Be4 {[%emt 0:00:30]} Bxe4 {[%emt 0:00:00]} 21. Rxe4 {[%emt 0:00:30]} Nxd5 {[%emt 0:00:00]} 22. d4 {[%emt 0:00:30]} f5 {[%emt 0:03:00]} 23. dxe5 {[%emt 0:00:00]} fxe4 {[%emt 0:00:00]} 24. Qxd5+ {[%emt 0:01:00]} Qf7 {[%emt 0:00:00]} 25. Qxf7+ {[%emt 0:00:00]} Kxf7 {[%emt 0:00:00]} 26. exd6 {[%emt 0:01:00]} Rc2 {[%emt 0:02:00]} 27. Ba3 {[%emt 0:00:30]} b5 {[%emt 0:00:00]} 28. Rc1 {[%emt 0:00:00]} Rxc1+ {[%emt 0:00:00]} 29. Bxc1 {[%emt 0:00:00]} Ke6 {[%emt 0:00:00]} 30. Bf4 {[%emt 0:00:00]} Rc8 {[%emt 0:02:00]} 0-1

[Event "Catalan Youth Championship 2024"]
[Site "Cambrils"]
[Date "2024.03.24"]
[Round "3.20"]
[White "Broadbent Brun, Jensen"]
[Black "Valle Luis, Leo"]
[Result "0-1"]
[ECO "A67"]
[WhiteElo "1917"]
[BlackElo "2230"]
[Annotator "RC"]
[PlyCount "76"]
[EventDate "2024.03.13"]
[EventType "swiss"]
[EventCountry "ESP"]
[SourceTitle "playchess.com"]
[Source "ChessBase"]
[SourceQuality "1"]
[TimeControl "5400+30"]

1. d4 {[%emt 0:00:05]} Nf6 {[%emt 0:00:06]} 2. c4 {[%emt 0:00:09]} e6 {[%emt 0:00:03]} 3. Nc3 {[%emt 0:00:05]} c5 {[%emt 0:00:04]} 4. d5 {[%emt 0:00:12]} exd5 {[%emt 0:00:01]} 5. cxd5 {[%emt 0:00:09]} d6 {[%emt 0:00:12]} 6. e4 {[%emt 0:00:19]} g6 {[%emt 0:00:07]} 7. f4 {[%emt 0:00:11]} Bg7 {[%emt 0:00:03]} 8. Bb5+ {[%emt 0:00:17]} Nfd7 {[%emt 0:00:03]} 9. a4 {[%emt 0:00:17]} O-O {[%emt 0:00:12]} 10. Nf3 {[%emt 0:00:27]} Na6 {[%emt 0:00:04]} 11. O-O {[%emt 0:00:31]} Nb4 {[%emt 0:00:04]} 12. Re1 {[%emt 0:00:38]} a6 {[%emt 0:00:06]} 13. Bf1 {[%emt 0:00:19]} Re8 {[%emt 0:00:04]} 14. Qb3 {[%emt 0:09:36]} Nf8 {[%emt 0:05:26]} 15. h3 {[%emt 1:24:45]} Rb8 {[%emt 0:07:22]} 16. Na2 {[%emt 0:00:00]} Nxa2 {[%emt 0:03:58]} 17. Rxa2 {[%emt 0:00:00]} b5 {[%emt 0:00:08]} 18. axb5 {[%emt 0:00:00]} axb5 {[%emt 0:00:06]} 19. Bd2 {[%emt 0:00:00]} Nd7 {[%emt 0:09:59]} 20. Qc2 {[%emt 0:00:00]} Nf6 {[%emt 0:13:28]} 21. b4 {[%emt 0:00:00]} Rxe4 {[%emt 0:05:52]} 22. Rxe4 {[%emt 0:00:00]} Bf5 {[%emt 0:00:06]} 23. Ng5 {[%emt 0:00:00]} Nxe4 {[%emt 0:00:09]} 24. Bd3 {[%emt 0:00:00]} Bd4+ {[%emt 0:02:05]} 25. Kh2 {[%emt 0:00:00]} Nxd2 {[%emt 0:00:12]} 26. Qxd2 {[%emt 0:00:00]} Bxd3 {[%emt 0:00:42]} 27. Qxd3 {[%emt 0:00:00]} Qf6 {[%emt 0:00:25]} 28. g3 {[%emt 0:00:00]} Qf5 {[%emt 0:06:04]} 29. Qxf5 {[%emt 0:00:00]} gxf5 {[%emt 0:00:06]} 30. bxc5 {[%emt 0:00:00]} b4 {[%emt 0:01:59]} 31. Rd2 {[%emt 0:00:00]} dxc5 {[%emt 0:01:25]} 32. Nf3 {[%emt 0:00:00]} Bc3 {[%emt 0:01:31]} 33. Rd1 {[%emt 0:00:00]} b3 {[%emt 0:00:34]} 34. d6 {[%emt 0:00:00]} b2 {[%emt 0:00:10]} 35. d7 {[%emt 0:00:00]} Rd8 {[%emt 0:00:06]} 36. Nh4 {[%emt 0:00:00]} Rxd7 {[%emt 0:00:42]} 37. Rb1 {[%emt 0:00:00]} Rd2+ {[%emt 0:00:13]} 38. Kh1 {[%emt 0:00:00]} Rc2 {[%emt 0:00:04]} 0-1

[Event "Catalan Youth Championship 2024"]
[Site "Cambrils"]
[Date "2024.03.24"]
[Round "3.21"]
[White "Serrano Batova, Vicent"]
[Black "Navajas Alvarez, Josep"]
[Result "1-0"]
[ECO "D05"]
[WhiteElo "2104"]
[BlackElo "1989"]
[Annotator "RC"]
[PlyCount "69"]
[EventDate "2024.03.13"]
[EventType "swiss"]
[EventCountry "ESP"]
[SourceTitle "playchess.com"]
[Source "ChessBase"]
[SourceQuality "1"]
[TimeControl "5400+30"]

1. d4 {[%emt 0:00:02]} d5 {[%emt 0:00:08]} 2. Nf3 {[%emt 0:00:02]} Nf6 {[%emt 0:00:14]} 3. e3 {[%emt 0:00:01]} e6 {[%emt 0:00:17]} 4. Bd3 {[%emt 0:00:02]} b6 {[%emt 0:00:31]} 5. Nbd2 {[%emt 0:00:06]} Bb7 {[%emt 0:00:23]} 6. O-O {[%emt 0:00:12]} Bd6 {[%emt 0:00:25]} 7. b3 {[%emt 0:00:01]} O-O {[%emt 0:00:27]} 8. Bb2 {[%emt 0:00:02]} c5 {[%emt 0:00:35]} 9. Ne5 {[%emt 0:00:09]} Nc6 {[%emt 0:00:35]} 10. a3 {[%emt 0:00:01]} Rc8 {[%emt 0:00:54]} 11. Qf3 {[%emt 0:00:02]} Ne7 {[%emt 0:05:35]} 12. dxc5 {[%emt 0:00:06]} bxc5 {[%emt 0:03:39]} 13. Qh3 {[%emt 0:00:01]} Bxe5 {[%emt 0:06:11]} 14. Bxe5 {[%emt 0:00:14]} Ng6 {[%emt 0:00:28]} 15. Bb2 {[%emt 0:30:06]} Ne4 {[%emt 0:08:05]} 16. Bxe4 {[%emt 0:10:22]} dxe4 {[%emt 0:00:19]} 17. Rfd1 {[%emt 0:00:13]} Qc7 {[%emt 0:04:58]} 18. Nc4 {[%emt 0:06:24]} Rcd8 {[%emt 0:02:22]} 19. Qg3 {[%emt 0:13:49]} Qxg3 {[%emt 0:06:23]} 20. hxg3 {[%emt 0:00:02]} Ne7 {[%emt 0:09:55]} 21. Na5 {[%emt 0:00:54]} Ba6 {[%emt 0:01:52]} 22. c4 {[%emt 0:04:18]} f6 {[%emt 0:04:38]} 23. b4 {[%emt 0:01:56]} cxb4 {[%emt 0:12:25]} 24. axb4 {[%emt 0:00:02]} e5 {[%emt 0:01:01]} 25. b5 {[%emt 0:00:25]} Bc8 {[%emt 0:00:13]} 26. Ba3 {[%emt 0:00:06]} Rxd1+ {[%emt 0:16:33]} 27. Rxd1 {[%emt 0:00:02]} Kf7 {[%emt 0:00:09]} 28. Bxe7 {[%emt 0:01:24]} Kxe7 {[%emt 0:00:13]} 29. Nc6+ {[%emt 0:00:02]} Kf7 {[%emt 0:00:41]} 30. Nxa7 {[%emt 0:00:18]} Be6 {[%emt 0:00:10]} 31. c5 {[%emt 0:00:57]} Rb8 {[%emt 0:04:42]} 32. b6 {[%emt 0:00:26]} Ke8 {[%emt 0:01:05]} 33. Nc6 {[%emt 0:01:17]} Rb7 {[%emt 0:00:01]} 34. Rd8+ {[%emt 0:00:21]} Kf7 {[%emt 0:00:02]} 35. Na5 {[%emt 0:00:19]} 1-0

[Event "Catalan Youth Championship 2024"]
[Site "Cambrils"]
[Date "2024.03.24"]
[Round "3.22"]
[White "Jurado Coderch, Heribert"]
[Black "Gomez Navais, Marcal"]
[Result "0-1"]
[ECO "B90"]
[WhiteElo "1960"]
[BlackElo "2086"]
[Annotator "RC"]
[PlyCount "78"]
[EventDate "2024.03.13"]
[EventType "swiss"]
[EventCountry "ESP"]
[SourceTitle "playchess.com"]
[Source "ChessBase"]
[SourceQuality "1"]
[TimeControl "5400+30"]

1. e4 {[%emt 0:00:03]} c5 {[%emt 0:00:06]} 2. Nf3 {[%emt 0:00:06]} d6 {[%emt 0:00:03]} 3. d4 {[%emt 0:00:07]} cxd4 {[%emt 0:00:05]} 4. Nxd4 {[%emt 0:00:07]} Nf6 {[%emt 0:00:05]} 5. Nc3 {[%emt 0:00:08]} a6 {[%emt 0:00:03]} 6. Be3 {[%emt 0:00:09]} e5 {[%emt 0:00:05]} 7. Nb3 {[%emt 0:00:06]} Be6 {[%emt 0:00:06]} 8. f3 {[%emt 0:00:15]} Be7 {[%emt 0:00:14]} 9. Qd2 {[%emt 0:00:13]} h5 {[%emt 0:00:06]} 10. Nd5 {[%emt 0:01:08]} Nxd5 {[%emt 0:00:17]} 11. exd5 {[%emt 0:00:02]} Bf5 {[%emt 0:00:09]} 12. Be2 {[%emt 0:03:28]} Nd7 {[%emt 0:00:39]} 13. O-O {[%emt 0:01:48]} O-O {[%emt 0:04:09]} 14. c4 {[%emt 0:01:31]} Nf6 {[%emt 0:01:48]} 15. Rac1 {[%emt 0:01:22]} Re8 {[%emt 0:00:52]} 16. Rfd1 {[%emt 1:27:57]} e4 {[%emt 0:17:25]} 17. f4 {[%emt 0:00:00]} Bg4 {[%emt 0:02:51]} 18. Nd4 {[%emt 0:00:00]} Bxe2 {[%emt 0:03:23]} 19. Qxe2 {[%emt 0:00:00]} Ng4 {[%emt 0:09:12]} 20. Nf5 {[%emt 0:00:00]} Bf6 {[%emt 0:08:12]} 21. Bd4 {[%emt 0:00:00]} g6 {[%emt 0:03:23]} 22. Ne3 {[%emt 0:00:00]} Bxd4 {[%emt 0:01:07]} 23. Rxd4 {[%emt 0:00:00]} Qf6 {[%emt 0:01:54]} 24. Rdd1 {[%emt 0:00:00]} Qxf4 {[%emt 0:02:10]} 25. Nxg4 {[%emt 0:00:00]} hxg4 {[%emt 0:01:04]} 26. c5 {[%emt 0:00:00]} dxc5 {[%emt 0:01:30]} 27. Rxc5 {[%emt 0:00:00]} Rad8 {[%emt 0:01:33]} 28. b4 {[%emt 0:00:00]} g3 {[%emt 0:01:25]} 29. hxg3 {[%emt 0:00:00]} Qxg3 {[%emt 0:00:28]} 30. Rd4 {[%emt 0:00:00]} e3 {[%emt 0:04:54]} 31. Rd3 {[%emt 0:00:00]} Re4 {[%emt 0:02:48]} 32. a3 {[%emt 0:00:00]} Rde8 {[%emt 0:08:19]} 33. Rcc3 {[%emt 0:00:00]} Rh4 {[%emt 0:07:37]} 34. Rxe3 {[%emt 0:00:00]} Qh2+ {[%emt 0:19:28]} 35. Kf2 {[%emt 0:00:00]} Rf4+ {[%emt 0:00:00]} 36. Ke1 {[%emt 0:00:00]} Qg1+ {[%emt 0:00:00]} 37. Kd2 {[%emt 0:00:00]} Rxe3 {[%emt 0:00:00]} 38. Qxe3 {[%emt 0:00:00]} Qxg2+ {[%emt 0:00:00]} 39. Kd3 {[%emt 0:00:00]} Rf3 {[%emt 0:00:00]} 0-1

[Event "Catalan Youth Championship 2024"]
[Site "Cambrils"]
[Date "2024.03.24"]
[Round "3.23"]
[White "Rocamora Martorell, Ferran"]
[Black "Gabanach Fernandez, Victor"]
[Result "1-0"]
[ECO "E09"]
[WhiteElo "2118"]
[BlackElo "1848"]
[Annotator "RC"]
[PlyCount "119"]
[EventDate "2024.03.13"]
[EventType "swiss"]
[EventCountry "ESP"]
[SourceTitle "playchess.com"]
[Source "ChessBase"]
[SourceQuality "1"]
[TimeControl "5400+30"]

1. Nf3 {[%emt 0:00:06]} Nf6 {[%emt 1:31:00]} 2. c4 {[%emt 0:00:36]} e6 {[%emt 0:00:30]} 3. g3 {[%emt 1:31:18]} d5 {[%emt 0:00:30]} 4. Bg2 {[%emt 0:00:30]} Be7 {[%emt 0:00:00]} 5. O-O {[%emt 0:00:30]} O-O {[%emt 0:00:00]} 6. d4 {[%emt 0:00:30]} c6 {[%emt 0:01:30]} 7. Qc2 {[%emt 0:00:00]} Nbd7 {[%emt 0:00:30]} 8. Rd1 {[%emt 0:01:00]} b6 {[%emt 0:00:30]} 9. b3 {[%emt 0:00:30]} Bb7 {[%emt 0:00:30]} 10. Nbd2 {[%emt 0:00:30]} c5 {[%emt 0:00:00]} 11. Bb2 {[%emt 0:00:30]} Qc7 {[%emt 0:01:00]} 12. Rac1 {[%emt 0:00:00]} Rac8 {[%emt 0:00:00]} 13. Qb1 {[%emt 0:00:00]} Qb8 {[%emt 0:01:00]} 14. Qa1 {[%emt 0:00:00]} Qa8 15. Ne5 {[%emt 0:02:00]} Rfd8 {[%emt 0:01:00]} 16. cxd5 {[%emt 0:00:30]} Bxd5 {[%emt 0:00:00]} 17. Bxd5 {[%emt 0:00:30]} Nxd5 {[%emt 0:01:00]} 18. Nxd7 {[%emt 0:00:00]} Rxd7 {[%emt 0:00:30]} 19. dxc5 {[%emt 0:01:00]} Bxc5 {[%emt 0:00:30]} 20. Nc4 {[%emt 0:00:30]} b5 {[%emt 0:00:30]} 21. e4 {[%emt 0:00:30]} bxc4 {[%emt 0:00:00]} 22. exd5 {[%emt 0:00:30]} Rxd5 {[%emt 0:01:00]} 23. Rxc4 {[%emt 0:00:30]} Rcd8 {[%emt 0:00:00]} 24. Rxd5 {[%emt 0:00:00]} Qxd5 {[%emt 0:01:00]} 25. Qc1 {[%emt 0:00:00]} Qf3 {[%emt 0:00:30]} 26. Bd4 {[%emt 0:01:30]} Bxd4 {[%emt 0:00:00]} 27. Rxd4 {[%emt 0:00:00]} Qf6 {[%emt 0:00:00]} 28. Rxd8+ {[%emt 0:00:00]} Qxd8 {[%emt 0:00:00]} 29. Qc5 {[%emt 0:01:30]} Qd7 {[%emt 0:02:00]} 30. b4 {[%emt 0:00:00]} Qd1+ {[%emt 0:00:00]} 31. Kg2 {[%emt 0:00:00]} h5 {[%emt 0:01:00]} 32. h4 {[%emt 0:01:30]} Qa4 {[%emt 0:00:30]} 33. Qc8+ {[%emt 0:00:30]} Kh7 {[%emt 0:00:00]} 34. Qc4 {[%emt 0:00:00]} g6 {[%emt 0:00:00]} 35. Qf4 {[%emt 0:00:00]} Kg8 {[%emt 0:00:00]} 36. Qd2 {[%emt 0:00:00]} Kg7 {[%emt 0:02:00]} 37. Qc3+ {[%emt 0:02:00]} Kg8 {[%emt 0:00:00]} 38. a3 {[%emt 0:00:00]} Qd1 {[%emt 0:00:00]} 39. Qc6 {[%emt 0:00:00]} Qd4 {[%emt 0:00:00]} 40. Qf3 {[%emt 0:00:00]} Kg7 {[%emt 0:02:00]} 41. Qb3 {[%emt 0:00:41]} Qe4+ {[%emt 0:00:00]} 42. Kg1 {[%emt 0:00:42]} Qe1+ {[%emt 0:00:00]} 43. Kg2 {[%emt 0:00:04]} Qe4+ {[%emt 0:00:00]} 44. Qf3 {[%emt 0:00:12]} Qd4 {[%emt 0:02:00]} 45. Qb7 {[%emt 0:02:21]} Kf6 {[%emt 0:00:00]} 46. Qb8 {[%emt 0:00:00]} Kg7 {[%emt 0:00:00]} 47. Qb7 {[%emt 0:00:24]} Kf6 {[%emt 0:00:00]} 48. Qf3+ {[%emt 0:00:25]} Kg7 {[%emt 0:00:00]} 49. Qb3 {[%emt 0:00:07]} Qe4+ {[%emt 0:00:00]} 50. Kh2 {[%emt 0:00:29]} Kg8 {[%emt 0:00:00]} 51. a4 {[%emt 0:00:19]} Qe1 {[%emt 0:00:00]} 52. Kg2 {[%emt 0:01:46]} Qe4+ 53. Qf3 {[%emt 0:00:00]} Qxb4 {[%emt 0:00:00]} 54. Qa8+ {[%emt 0:00:00]} Kg7 {[%emt 0:00:00]} 55. Qxa7 {[%emt 0:00:00]} Qe4+ {[%emt 0:00:00]} 56. Kg1 {[%emt 0:00:00]} Qe1+ {[%emt 0:00:00]} 57. Kh2 {[%emt 0:02:30]} Qe5 {[%emt 0:02:12]} 58. a5 {[%emt 0:00:00]} g5 {[%emt 0:00:05]} 59. a6 {[%emt 0:01:00]} Kg6 {[%emt 0:02:06]} 60. Qe3 {[%emt 0:00:30]} 1-0

[Event "Catalan Youth Championship 2024"]
[Site "Cambrils"]
[Date "2024.03.25"]
[Round "4.1"]
[White "Caballero Mogilnikov, Liam"]
[Black "Madorran Gomez, Marcel"]
[Result "1-0"]
[ECO "B21"]
[WhiteElo "1659"]
[BlackElo "1530"]
[Annotator "NA RC"]
[PlyCount "33"]
[EventDate "2024.03.13"]
[EventType "swiss"]
[EventCountry "ESP"]
[SourceTitle "playchess.com"]
[Source "ChessBase"]
[SourceQuality "1"]
[TimeControl "5400+30"]

1. e4 {[%emt 0:00:04]} c5 {[%emt 0:00:17]} 2. d4 {[%emt 0:00:58]} cxd4 {[%emt 0:00:13]} 3. c3 {[%emt 0:00:29]} dxc3 {[%emt 0:01:17]} 4. Nxc3 {[%emt 0:01:26]} Nc6 {[%emt 0:00:44]} 5. Bc4 {[%emt 0:01:18]} e5 {[%emt 0:00:37]} 6. Be3 {[%emt 0:02:01]} Nf6 {[%emt 0:01:13]} 7. a3 {[%emt 0:01:33]} b6 {[%emt 0:00:57]} 8. Nf3 {[%emt 0:01:59]} h6 {[%emt 0:00:35]} 9. h3 {[%emt 0:03:00]} Bb7 {[%emt 0:01:16]} 10. b4 {[%emt 0:03:53]} a6 {[%emt 0:02:16]} 11. Qb3 {[%emt 0:03:08]} Qe7 {[%emt 0:07:31]} 12. Bxb6 {[%emt 0:18:12]} d6 {[%emt 0:00:46]} 13. Rd1 {[%emt 0:02:52]} Qd7 {[%emt 0:01:23]} 14. Qa2 {[%emt 0:03:42]} Nd8 {[%emt 0:04:38]} 15. Bxd8 {[%emt 0:02:22]} Rxd8 {[%emt 0:00:25]} 16. Nxe5 {[%emt 0:00:11]} Qe7 {[%emt 0:01:45]} 17. Bxf7+ {[%emt 0:00:19]} 1-0

[Event "Catalan Youth Championship 2024"]
[Site "Cambrils"]
[Date "2024.03.25"]
[Round "4.2"]
[White "Ortega Campallo, David"]
[Black "Garcia Huerta, Joaquin Marc"]
[Result "1-0"]
[ECO "B32"]
[WhiteElo "1522"]
[BlackElo "1617"]
[Annotator "NA RC"]
[PlyCount "123"]
[EventDate "2024.03.13"]
[EventType "swiss"]
[EventCountry "ESP"]
[SourceTitle "playchess.com"]
[Source "ChessBase"]
[SourceQuality "1"]
[TimeControl "5400+30"]

1. e4 {[%emt 0:00:02]} c5 {[%emt 0:00:13]} 2. Nf3 {[%emt 0:00:11]} Nc6 {[%emt 0:00:21]} 3. d4 {[%emt 0:00:33]} cxd4 {[%emt 0:00:23]} 4. Nxd4 {[%emt 0:00:47]} e5 {[%emt 0:00:23]} 5. Nf3 {[%emt 0:01:58]} Nf6 {[%emt 0:00:28]} 6. Bd3 {[%emt 0:03:10]} Bc5 {[%emt 0:06:26]} 7. Nc3 {[%emt 0:04:20]} a6 {[%emt 0:04:58]} 8. Bg5 {[%emt 0:04:44]} Be7 {[%emt 0:04:51]} 9. Be3 {[%emt 0:04:23]} d5 {[%emt 0:18:13]} 10. exd5 {[%emt 0:07:30]} Nxd5 {[%emt 0:00:18]} 11. Nxd5 {[%emt 0:07:10]} Qxd5 {[%emt 0:00:15]} 12. Be2 {[%emt 0:00:55]} Qxd1+ {[%emt 0:00:44]} 13. Rxd1 {[%emt 0:00:08]} Bf5 {[%emt 0:03:13]} 14. c3 {[%emt 0:02:15]} O-O {[%emt 0:02:19]} 15. O-O {[%emt 0:02:32]} Rfd8 {[%emt 0:03:41]} 16. h3 {[%emt 0:04:03]} Rd6 {[%emt 0:01:07]} 17. Bb6 {[%emt 0:03:28]} Rg6 {[%emt 0:03:08]} 18. Kh1 {[%emt 0:51:21]} Re8 {[%emt 0:08:53]} 19. Rfe1 {[%emt 0:00:00]} Bf6 {[%emt 0:03:11]} 20. Bc4 {[%emt 0:00:00]} e4 {[%emt 0:09:26]} 21. Bd5 {[%emt 0:00:00]} h6 {[%emt 0:07:17]} 22. Nd4 {[%emt 0:00:00]} Bxd4 {[%emt 0:00:34]} 23. Bxd4 {[%emt 0:00:00]} Nxd4 {[%emt 0:00:36]} 24. Rxd4 {[%emt 0:00:00]} Rd6 {[%emt 0:02:39]} 25. Bxf7+ {[%emt 0:00:00]} Kxf7 {[%emt 0:00:05]} 26. Rxd6 {[%emt 0:00:00]} Re5 {[%emt 0:00:56]} 27. f3 {[%emt 0:00:00]} e3 {[%emt 0:00:36]} 28. g4 {[%emt 0:00:00]} Be6 {[%emt 0:00:17]} 29. Rd3 {[%emt 0:00:00]} e2 {[%emt 0:00:12]} 30. Rd2 {[%emt 0:00:00]} Bd5 {[%emt 0:00:06]} 31. Kg2 {[%emt 0:00:00]} Bxa2 {[%emt 0:01:47]} 32. Rexe2 {[%emt 0:00:00]} Rxe2+ {[%emt 0:02:15]} 33. Rxe2 {[%emt 0:00:00]} b5 {[%emt 0:00:11]} 34. b4 {[%emt 0:00:00]} Be6 {[%emt 0:00:27]} 35. f4 {[%emt 0:00:00]} g6 {[%emt 0:00:41]} 36. Rd2 {[%emt 0:00:00]} Ke7 {[%emt 0:00:15]} 37. Kf3 {[%emt 0:00:00]} h5 {[%emt 0:00:30]} 38. gxh5 {[%emt 0:00:00]} gxh5 {[%emt 0:00:09]} 39. Kg3 {[%emt 0:00:00]} Bd7 {[%emt 0:00:18]} 40. Ra2 {[%emt 0:00:00]} Bc8 {[%emt 0:00:12]} 41. h4 {[%emt 0:00:00]} Kd6 {[%emt 0:00:06]} 42. Rd2+ {[%emt 0:00:00]} Kc6 {[%emt 0:00:20]} 43. Kf3 {[%emt 0:00:00]} Bf5 {[%emt 0:00:55]} 44. Ke3 {[%emt 0:00:00]} Kc7 {[%emt 0:00:59]} 45. Kd4 {[%emt 0:00:00]} Kd6 {[%emt 0:00:17]} 46. Rg2 {[%emt 0:00:00]} Bg4 {[%emt 0:01:18]} 47. Rf2 {[%emt 0:00:00]} Bf5 {[%emt 0:00:13]} 48. c4 {[%emt 0:00:00]} bxc4 {[%emt 0:00:10]} 49. Kxc4 {[%emt 0:00:00]} Kc6 {[%emt 0:00:12]} 50. Re2 {[%emt 0:00:00]} Bd7 {[%emt 0:00:22]} 51. Re5 {[%emt 0:00:00]} Kd6 {[%emt 0:00:51]} 52. Rxh5 {[%emt 0:00:00]} Be6+ {[%emt 0:00:09]} 53. Kd4 {[%emt 0:17:30]} Kc6 54. Rg5 Bf7 55. h5 Bxh5 56. Rxh5 Kb6 57. Re5 Kc6 58. f5 Kd6 59. f6 Kd7 60. f7 a5 61. f8=Q a4 62. Qf6 1-0

[Event "Catalan Youth Championship 2024"]
[Site "Cambrils"]
[Date "2024.03.25"]
[Round "4.3"]
[White "Guiu Ruiz, Lluc"]
[Black "Kukushkin, Oleg"]
[Result "1-0"]
[ECO "B01"]
[WhiteElo "1613"]
[BlackElo "1509"]
[Annotator "NA RC"]
[PlyCount "55"]
[EventDate "2024.03.13"]
[EventType "swiss"]
[EventCountry "ESP"]
[SourceTitle "playchess.com"]
[Source "ChessBase"]
[SourceQuality "1"]
[TimeControl "5400+30"]

1. e4 {[%emt 0:00:03]} d5 {[%emt 0:00:06]} 2. exd5 {[%emt 0:00:12]} Nf6 {[%emt 0:00:09]} 3. Nf3 {[%emt 0:01:26]} b6 {[%emt 0:01:55]} 4. d4 {[%emt 0:05:27]} e6 {[%emt 0:01:43]} 5. dxe6 {[%emt 0:01:20]} Bxe6 {[%emt 0:00:23]} 6. Bf4 {[%emt 0:04:18]} Bd6 {[%emt 0:05:51]} 7. Bxd6 {[%emt 0:02:07]} Qxd6 {[%emt 0:00:28]} 8. Bd3 {[%emt 0:01:48]} h6 {[%emt 0:02:16]} 9. O-O {[%emt 0:02:45]} O-O {[%emt 0:00:50]} 10. c3 {[%emt 0:05:27]} Re8 {[%emt 0:03:18]} 11. Qc2 {[%emt 0:04:54]} Nc6 {[%emt 0:04:53]} 12. Nbd2 {[%emt 0:01:08]} a6 {[%emt 0:05:51]} 13. Rfe1 {[%emt 0:02:05]} a5 {[%emt 0:05:54]} 14. Ne4 {[%emt 0:02:39]} Nxe4 {[%emt 0:01:20]} 15. Bxe4 {[%emt 0:00:13]} Bd5 {[%emt 0:05:07]} 16. Bxd5 {[%emt 0:01:28]} Qxd5 {[%emt 0:00:13]} 17. a3 {[%emt 0:05:22]} Re6 {[%emt 0:02:24]} 18. c4 {[%emt 0:05:46]} Qh5 {[%emt 0:00:46]} 19. d5 {[%emt 0:01:58]} Rg6 {[%emt 0:00:21]} 20. dxc6 {[%emt 0:00:22]} Qxf3 {[%emt 0:56:42]} 21. Qxg6 {[%emt 0:50:12]} Qf4 {[%emt 0:00:00]} 22. Qe4 {[%emt 0:00:00]} Qg5 {[%emt 0:00:00]} 23. Rad1 {[%emt 0:00:00]} f5 {[%emt 0:00:00]} 24. Qe6+ {[%emt 0:00:00]} Kh7 {[%emt 0:00:00]} 25. Rd7 {[%emt 0:00:00]} Rf8 {[%emt 0:00:00]} 26. Rf7 {[%emt 0:00:00]} Rxf7 {[%emt 0:00:00]} 27. Qxf7 {[%emt 0:00:00]} Qd2 {[%emt 0:00:00]} 28. Qxf5+ {[%emt 0:00:00]} 1-0